Cogmind - Beta 14 @@@ ROGUE MODE // 2024.09.18 @ 08:34:03 Player: rice Result: Self-destructed Performance ------------- Evolutions (3) 1500 Regions Visited (6) 1200 Robots Destroyed (40) 200 Value Destroyed (1123) 1123 Prototype IDs (3) 60 Alien Tech Used (0) 0 Bonus (0) 0 TOTAL SCORE: 4083 Bonus ------- None Cogmind --------- Core Integrity 486/700 Matter 138/300 Energy 99/100 System Corruption 7% Temperature Cool (0) Movement Core (50) Location -7/Waste Parts ------- > --- POWER (1) -------- (None) > --- PROPULSION (4) --- (None) > --- UTILITY (5) ------ (None) > --- WEAPON (3) ------- (None) > --- INVENTORY (5) ---- Improved Deuterium Engine Light Treads Light Treads Light Treads Hacking Suite Peak State ------------ > --- POWER ------------ Improved Deuterium Engine > --- PROPULSION ------- Improved Aluminum Leg Improved Aluminum Leg Improved Aluminum Leg Improved Aluminum Leg > --- UTILITY ---------- Improved Heat Sink High-capacity Storage Unit Seismic Detector Medium Armor Plating Medium Armor Plating > --- WEAPON ----------- Heavy Assault Rifle Enhanced Autogun Gauss Cannon > --- INVENTORY -------- Improved Deuterium Engine Light Treads Light Treads Light Treads Light Treads Light Treads Light Treads Armored Treads Compact Matter Pod Machine Analyzer Medium Armor Plating Hacking Suite Hacking Suite Hacking Suite System Shield Beam Rifle Heavy Assault Rifle Shotgun Mini Grenade Launcher [Rating: 35] Favorites ----------- Power Ion Engine Engine Ion Engine Power Core Light Nuclear Core Propulsion Improved Aluminum Leg Leg Improved Aluminum Leg Utility High-capacity Storage Unit Device Structural Scanner Storage High-capacity Storage Unit Protection Medium Armor Plating Weapon Shotgun Energy Gun Shock Rifle Ballistic Gun Shotgun Ballistic Cannon Flak Cannon Launcher Advanced EMP Blaster Build | -11 -10 -10 -10 -8 -7 -7 ------- Run | Yrd Mat Min Sub Mat Fac Was Slots Evolved 6 | . . . . 4 2 . Power . | . . . . . . . Propulsion 2 | . . . . 2 . . Utility 3 | . . . . 1 2 . Weapon 1 | . . . . 1 . . Parts Attached 54 | 6 25 3 1 16 3 . Power 8 | 1 5 . . 2 . . Engine 7 | 1 4 . . 2 . . Core 1 | . 1 . . . . . Reactor . | . . . . . . . Propulsion 13 | 2 8 . . 3 . . Treads . | . . . . . . . Leg 13 | 2 8 . . 3 . . Wheel . | . . . . . . . Hover . | . . . . . . . Flight . | . . . . . . . Utility 10 | 1 4 1 . 2 2 . Device 4 | . 2 . . 1 1 . Storage 3 | 1 2 . . . . . Processor . | . . . . . . . Hackware . | . . . . . . . Protection 3 | . . 1 . 1 1 . Artifact . | . . . . . . . Weapon 23 | 2 8 2 1 9 1 . Energy Gun 3 | 1 . 1 . 1 . . Energy Cannon . | . . . . . . . Ballistic Gun 17 | 1 8 . 1 7 . . Ballistic Cannon 2 | . . 1 . . 1 . Launcher 1 | . . . . 1 . . Special Weapon . | . . . . . . . Impact Weapon . | . . . . . . . Slashing Weapon . | . . . . . . . Piercing Weapon . | . . . . . . . Special Melee Weapon . | . . . . . . . Unidentified Prototypes 3 | . . . . 3 . . Parts Lost 10 | . 2 1 . . . 7 Power 1 | . 1 . . . . . Propulsion 3 | . . . . . . 3 Utility 5 | . . 1 . . . 4 Weapon 1 | . 1 . . . . . Highest Loss Streak 7 | . 1 1 . . . 7 To Critical Strikes . | . . . . . . . Average Slot Usage (%) 99 | . 99 100 100 99 92 77 Engine 11 | . 9 14 14 9 7 6 Core 1 | . 4 . . . . . Leg 29 | . 28 28 28 35 30 22 Device 8 | . 13 12 . 9 11 13 Storage 13 | . 14 14 14 9 7 6 Protection 6 | . . 1 14 8 11 10 Energy Gun 3 | . 1 12 2 . . . Ballistic Gun 17 | . 26 2 11 25 17 10 Ballistic Cannon 6 | . . 12 14 . 4 6 Peak Build Rating 35 | 6 14 18 18 32 35 35 Average Rating 17 | 4 11 16 18 26 32 27 On Entrance 17 | . 6 13 18 18 30 35 Naked Turns 6 | . . . . . . 6 Heaviest Build 79 | 12 52 61 61 66 79 79 Greatest Support 52 | 20 26 26 26 52 52 52 Greatest Overweight (x) 19 | . 2 2 2 1 1 19 Average Overweight (x) 1 | . 1 1 2 1 1 1 Largest Inventory Capacity 20 | 8 20 20 20 20 20 20 Average Capacity 19 | 7 18 20 20 20 20 18 Most Carried 20 | 4 20 20 20 20 20 19 Average Carried 18 | 2 16 19 20 19 19 17 Final Capacity 20 | 8 20 20 20 20 20 5 Final Carried 20 | 4 20 20 20 20 19 5 Class Distribution -------------------- 82% | Mutant 16% | Tank Dominant Class ---------------- Mutant | -10/Materials Mutant | -10/Mines Mutant | -10/Subcaves Tank | -8/Materials Tank | -7/Factory Tank | -7/Waste Resources | -11 -10 -10 -10 -8 -7 -7 ----------- Run | Yrd Mat Min Sub Mat Fac Was Matter Collected 1349 | 218 606 147 51 327 . . Remotely . | . . . . . . . Salvage Created 1201 | . 606 111 34 450 . . Parts 73 | . 37 8 2 26 . . Haulers Intercepted 2 | . 1 . . 1 . . Recyclers Shooed . | . . . . . . . Parts Field Recycled . | . . . . . . . Retrieved Matter . | . . . . . . . Parts Self-Destructed 9 | . . . 9 . . . Prevented . | . . . . . . . Kills | -11 -10 -10 -10 -8 -7 -7 ------- Run | Yrd Mat Min Sub Mat Fac Was Combat Hostiles Destroyed 30 | . 15 3 2 10 . . Guns 25 | . 15 2 . 8 . . Cannons 5 | . . 1 2 2 . . Classes Destroyed 9 | . 5 1 1 2 . . Hauler 2 | . 1 . . 1 . . Recycler 1 | . . . . 1 . . Mechanic 1 | . . . . 1 . . Operator 3 | . 2 . . 1 . . Watcher 3 | . 3 . . . . . Swarmer 7 | . 3 . . 4 . . Grunt 17 | . 12 2 . 3 . . Sentry 5 | . . 1 1 3 . . Subdweller 1 | . . . 1 . . . Best Kill Streak 4 | . 4 2 1 4 . . Combat Bots Only 4 | . 4 2 1 4 . . Max Kills in Single Turn 2 | . 1 1 1 2 . . Gunslinging 1 | . . . . 1 . . Exploded . | . . . . . . . Melee . | . . . . . . . Uniques/NPCs Destroyed . | . . . . . . . Combat | -11 -10 -10 -10 -8 -7 -7 -------- Run | Yrd Mat Min Sub Mat Fac Was Hostile Shots Fired 165 | . 79 25 21 33 . 7 Missed 49 | . 19 9 12 9 . . Damage Taken 1788 | . 719 263 129 326 . 351 Core 440 | . 87 60 48 31 . 214 Absorbed by Shields . | . . . . . . . Regen/Repaired (Parts) 175 | . . . . 175 . . Core Remaining (%) 72 | 100 . . 22 94 . . Volleys Fired 119 | . 73 8 8 30 . . Largest 3 | . 2 2 2 3 . . Hottest 94 | . 70 94 94 91 . . Shots Fired 243 | . 135 16 16 76 . . Gun 218 | . 135 8 8 67 . . Cannon 25 | . . 8 8 9 . . Launcher . | . . . . . . . Special . | . . . . . . . Kinetic 218 | . 121 8 13 76 . . Thermal 14 | . 14 . . . . . Explosive . | . . . . . . . Electromagnetic 11 | . . 8 3 . . . Robot Hit Streak 9 | . 9 8 9 7 . . Robot Miss Streak 9 | . 9 6 6 5 . . Penetration Max . | . . . . . . . Secondary Targets 2 | . 1 . . 1 . . Max Gunslinging Chain 1 | . 1 . . 1 . . Shots Hit Robots 162 | . 88 11 13 50 . . Core Hits 94 | . 42 14 7 31 . . Critical Kills 1 | . 1 . . . . . Critical Parts Destroyed 1 | . 1 . . . . . Critical Strikes 4 | . 4 . . . . . Burn 2 | . 2 . . . . . Destroy 2 | . 2 . . . . . Melee Attacks . | . . . . . . . Impact . | . . . . . . . Slashing . | . . . . . . . Piercing . | . . . . . . . Sneak Attacks . | . . . . . . . Combat Hostiles . | . . . . . . . Follow-up Attacks . | . . . . . . . Damage Inflicted 2842 | 4 1300 350 268 920 . . Guns 2282 | . 1280 102 79 821 . . Cannons 463 | . . 196 189 78 . . Explosions 42 | . . 42 . . . . Melee . | . . . . . . . Ramming 55 | 4 20 10 . 21 . . Kinetic 2550 | . 1202 196 253 899 . . Thermal 120 | . 78 42 . . . . Explosive . | . . . . . . . Electromagnetic 117 | . . 102 15 . . . Impact . | . . . . . . . Slashing . | . . . . . . . Piercing . | . . . . . . . Highest Corruption 7 | . . . . . . 7 Average Corruption 7 | . . . . . . 7 Corruption Purged . | . . . . . . . Corruption Blocked . | . . . . . . . Effects 3 | . . . . . . 3 Message Errors 1 | . . . . . . 1 Matter Fused 1 | . . . . . . 1 Energy Discharges 1 | . . . . . . 1 Overload Shots . | . . . . . . . Overflow Damage . | . . . . . . . Projectiles . | . . . . . . . Explosions . | . . . . . . . Melee . | . . . . . . . Knockbacks 13 | . . 5 4 4 . . Impact 1 | . . . . 1 . . Kinetic 12 | . . 5 4 3 . . Secondary . | . . . . . . . Self-Inflicted Damage 33 | . . 33 . . . . Shots 1 | . . 1 . . . . Rammed . | . . . . . . . Targets Rammed 11 | 1 4 3 . 3 . . Kicked 11 | 1 4 3 . 3 . . Crushed . | . . . . . . . Highest Temperature 421 | . 54 178 3 421 . . Average Temperature 50 | . 13 89 3 62 . . Received Heat Transfer 654 | . 408 93 36 117 . . Effects 1 | . . . . 1 . . Energy Bleed 1 | . . . . 1 . . Siege Activations . | . . . . . . . Robots Corrupted . | . . . . . . . Combat Hostiles . | . . . . . . . Parts Fried . | . . . . . . . Impact Corruptions . | . . . . . . . Robots Melted . | . . . . . . . Combat Hostiles . | . . . . . . . Parts Melted . | . . . . . . . Heat Transferred 420 | . 370 50 . . . . Parts Sabotaged . | . . . . . . . Parts Stolen . | . . . . . . . Parts Stripped . | . . . . . . . Power Chain Reactions 1 | . . 1 . . . . Alert | -11 -10 -10 -10 -8 -7 -7 ------- Run | Yrd Mat Min Sub Mat Fac Was Peak Influence 206 | . 151 57 . 206 12 4 Initial 7 | . . 7 . . . 4 Average 51 | . 69 7 . 68 4 2 Maximum Alert Level 1 | . . . . 1 . . Low Security (%) 99 | 100 100 100 . 96 100 100 Level 1 . | . . . . 3 . . Level 2 . | . . . . . . . Level 3 . | . . . . . . . Level 4 . | . . . . . . . Level 5 . | . . . . . . . High Security . | . . . . . . . Max Security . | . . . . . . . Squads Dispatched 6 | . 4 1 . 1 . . Investigation 3 | . 2 1 . . . . Extermination . | . . . . . . . Reinforcement 3 | . 2 . . 1 . . Assault . | . . . . . . . Garrison . | . . . . . . . Intercept . | . . . . . . . Searches Triggered . | . . . . . . . Construction Impeded . | . . . . . . . Haulers Reinforced . | . . . . . . . Active Scanning Responses . | . . . . . . . Cargo Convoy Interrupts . | . . . . . . . Stealth | -11 -10 -10 -10 -8 -7 -7 --------- Run | Yrd Mat Min Sub Mat Fac Was Distress Signals . | . . . . . . . Communications Jammed . | . . . . . . . Distress Signals . | . . . . . . . Times Spotted 64 | . 31 4 5 19 . 5 Peak Tracking Total 5 | . 4 2 2 4 . 5 Tactical Retreats 4 | . . . 3 1 . . Traps | -11 -10 -10 -10 -8 -7 -7 ------- Run | Yrd Mat Min Sub Mat Fac Was Traps Triggered 3 | . 2 . . . 1 . Indirectly . | . . . . . . . Trap Hack Attempts . | . . . . . . . Triggered . | . . . . . . . Disarmed . | . . . . . . . Reprogrammed . | . . . . . . . Reused . | . . . . . . . Traps Extracted . | . . . . . . . Installed . | . . . . . . . Triggered . | . . . . . . . Machines | -11 -10 -10 -10 -8 -7 -7 ---------- Run | Yrd Mat Min Sub Mat Fac Was Machines Disabled 1 | . 1 . . . . . Max in Single Turn 1 | . 1 . . . . . Garrison Access 1 | . . . . 1 . . Machines Repaired . | . . . . . . . Machines Dismantled . | . . . . . . . Machines Sabotaged . | . . . . . . . Overloaded Fab Kills . | . . . . . . . Hacking | -11 -10 -10 -10 -8 -7 -7 --------- Run | Yrd Mat Min Sub Mat Fac Was Machines Accessed 12 | . 3 1 1 6 1 . Terminals 4 | . 3 . . 1 . . Fabricators . | . . . . . . . Repair Stations 2 | . . . . 2 . . Recycling Units 1 | . . . . 1 . . Scanalyzers 2 | . . . . 1 1 . Garrison Access 1 | . . . . 1 . . Total Hacks 30 | . 5 1 4 18 2 . Successful 21 | . 1 1 4 14 1 . Failed 9 | . 4 . . 4 1 . Catastrophic 1 | . . . . . 1 . Database Lockouts . | . . . . . . . Manual 9 | . 5 . 2 2 . . Terminals 7 | . 5 . . 2 . . Fabricators . | . . . . . . . Repair Stations 4 | . . . . 4 . . Recycling Units 2 | . . . . 2 . . Scanalyzers 10 | . . . . 8 2 . Garrison Access 2 | . . . . 2 . . Terminal Hacks 6 | . . 1 4 1 . . Record 4 | . . . 4 . . . Open Door 1 | . . 1 . . . . Unreport Threat 1 | . . . . 1 . . Fabricator Hacks . | . . . . . . . Repair Station Hacks 4 | . . . . 4 . . Scan Component 2 | . . . . 2 . . Repair 2 | . . . . 2 . . Recycling Unit Hacks 2 | . . . . 2 . . Retrieve Matter 1 | . . . . 1 . . Retrieve Components 1 | . . . . 1 . . Scanalyzer 7 | . . . . 6 1 . Insert Component 4 | . . . . 3 1 . Analyze 3 | . . . . 3 . . Garrison Access Hacks 1 | . . . . 1 . . Seal Access 1 | . . . . 1 . . Unauthorized Hacks 1 | . 1 . . . . . Terminals 1 | . 1 . . . . . Botnet 1 | . 1 . . . . . Fabricators . | . . . . . . . Repair Stations . | . . . . . . . Recycling Units . | . . . . . . . Scanalyzers . | . . . . . . . Garrison Access . | . . . . . . . Data Cores Recovered . | . . . . . . . Used . | . . . . . . . Hacking Detections 7 | . 2 . . 4 1 . Full Trace Events . | . . . . . . . Feedback Events . | . . . . . . . Feedback Blocked . | . . . . . . . Robot Schematics Acquired . | . . . . . . . Robots Built . | . . . . . . . Authchips . | . . . . . . . Time . | . . . . . . . Total Robot Build Rating . | . . . . . . . Part Schematics Acquired 2 | . . . . 2 . . Parts Built . | . . . . . . . Authchips . | . . . . . . . Time . | . . . . . . . Total Part Build Rating . | . . . . . . . Parts Repaired 2 | . . . . 2 . . Time 64 | . . . . 64 . . Parts Recycled . | . . . . . . . Recycled Matter . | . . . . . . . Retrieved Matter 70 | . . . . 70 . . Retrieved Components 10 | . . . . 10 . . Parts Scanalyzed 4 | . . . . 3 1 . Part Schematics Acquired 2 | . . . . 2 . . Parts Damaged 1 | . . . . . 1 . Bothacking | -11 -10 -10 -10 -8 -7 -7 ------------ Run | Yrd Mat Min Sub Mat Fac Was Used RIF Installer . | . . . . . . . Robots Hacked . | . . . . . . . Non-combat . | . . . . . . . Combat . | . . . . . . . Robot Hacks Applied . | . . . . . . . Relay Couplers Released . | . . . . . . . Fabnet Peak Effective % . | . . . . . . . Robots Rewired . | . . . . . . . Allies Hacked . | . . . . . . . Hacks Repelled . | . . . . . . . Allies | -11 -10 -10 -10 -8 -7 -7 -------- Run | Yrd Mat Min Sub Mat Fac Was Total Allies . | . . . . . . . Largest Group . | . . . . . . . Highest-Rated Group . | . . . . . . . Highest-Rated Ally . | . . . . . . . Total Orders . | . . . . . . . Ally Attacks . | . . . . . . . Total Damage . | . . . . . . . Kills . | . . . . . . . Allies Corrupted . | . . . . . . . Allies Melted . | . . . . . . . Intel | -11 -10 -10 -10 -8 -7 -7 ------- Run | Yrd Mat Min Sub Mat Fac Was Robot Analysis Total . | . . . . . . . Derelict Logs Recovered 2 | . . . 2 . . . Drone Launches . | . . . . . . . Drone Recoveries . | . . . . . . . Exploration | -11 -10 -10 -10 -8 -7 -7 ------------- Run | Yrd Mat Min Sub Mat Fac Was Turns Passed 7822 | 57 2502 1170 2652 1255 108 78 Spaces Moved 2979 | 39 920 427 994 503 55 41 Core 15 | 5 . . . . . 10 Treads . | . . . . . . . Legs 2964 | 34 920 427 994 503 55 31 Wheels . | . . . . . . . Hover . | . . . . . . . Flight . | . . . . . . . Fastest Speed 50 | 50 120 190 260 190 190 50 Average Speed 234 | 111 232 253 260 190 190 189 Slowest Speed 1000 | 120 260 260 260 190 190 1000 Overloaded Moves . | . . . . . . . Propulsion Burnouts . | . . . . . . . Robots Hopped . | . . . . . . . Cave-ins Triggered . | . . . . . . . Exploration Rate (%) 40 | 3 84 64 51 35 2 46 Regions Visited 6 Branch Regions 2 Pre-discovered Areas . | . . . . . . . Known Exits Taken . | . . . . . . . Unknown Exits Taken 5 | 1 1 1 1 1 . . Scrap Searched 1 | . . 1 . . . . Spaces Dug . | . . . . . . . Terrain Destroyed 7 | . . 7 . . . . Melee . | . . . . . . . Projectile . | . . . . . . . AOE 7 | . . 7 . . . . Terrain Rammed . | . . . . . . . Walls Destroyed . | . . . . . . . Machines Disabled . | . . . . . . . Actions | -11 -10 -10 -10 -8 -7 -7 --------- Run | Yrd Mat Min Sub Mat Fac Was Total 3584 | 49 1151 496 1046 742 59 41 Wait 342 | . 84 43 42 173 . . Move 2974 | 38 919 426 993 502 55 41 Hop . | . . . . . . . Pick Up 47 | 4 26 7 . 9 1 . Fast Attach 10 | 6 2 . . 2 . . Attach 8 | . 1 1 . 4 2 . Detach . | . . . . . . . Swap 36 | . 22 2 1 10 1 . Drop 35 | . 20 6 . 9 . . Fire 119 | . 73 8 8 30 . . Melee . | . . . . . . . Ram . | . . . . . . . Kick 11 | 1 4 3 . 3 . . Crush . | . . . . . . . Escape Stasis . | . . . . . . . Rewire 2 | . . . 2 . . . Trap . | . . . . . . . Miscellaneous . | . . . . . . . Route ------- -11/Scrapyard -10/Materials (discovered 3 exits: [*Mat x2] / *Min) -10/Mines (discovered 3 exits: [*Mat] / [*Exi] / *Sub) -10/Subcaves (discovered 2 exits: *Mat x2) -8/Materials -7/Factory -7/Waste History --------- Turn | Location | Event 12 | -11/Scrapyard | Discovered new exit (range 16) 58 | -11/Scrapyard | Entered Materials 118 | -10/Materials | Discovered new exit (range 16) 314 | -10/Materials | Build established: Mutant 923 | -10/Materials | Discovered new exit (range 10) 1535 | -10/Materials | Discovered new exit (range 5) 2560 | -10/Materials | Entered Mines 2575 | -10/Mines | Met a Derelict shopkeep closing up shop 2798 | -10/Mines | Discovered new exit (range 3) 3261 | -10/Mines | A weapon hastily lodged in a ceiling crevice suddenly fell to the ground 3356 | -10/Mines | Discovered new exit (range 6) 3595 | -10/Mines | Discovered new exit (range 7) 3632 | -10/Mines | Core integrity fell below 50% 3647 | -10/Mines | Joined a pair of Derelicts in attacking an 0b10 outpost 3730 | -10/Mines | Entered Subcaves 4066 | -10/Subcaves | Discovered new exit (range 11) 4447 | -10/Subcaves | Visited Clippyterm 4455 | -10/Subcaves | Learned Research security intel 4928 | -10/Subcaves | Learned Materials stockpile data 5279 | -10/Subcaves | Discovered new exit (range 8) 5283 | -10/Subcaves | Shifting Twisted Machinery released Sub. Monowheel 5420 | -10/Subcaves | Shifting Twisted Machinery released Mak. System Restoration Module 6088 | -10/Subcaves | A swath of the cavern ceiling suddenly collapsed 6382 | -10/Subcaves | Entered Materials 6382 | -8/Materials | Evolved 4 slots: Propulsion x2, Utility x1, Weapon x1 6747 | -8/Materials | Build established: Tank 7097 | -8/Materials | Repaired Imp. Aluminum Leg 7148 | -8/Materials | Discovered new exit (range 5) 7409 | -8/Materials | Repaired Med. Armor Plating 7637 | -8/Materials | Entered Factory 7637 | -7/Factory | Evolved 2 slots: Utility x2 7745 | -7/Factory | Sucked down chute 7745 | -7/Factory | Entered Waste 7755 | -7/Waste | Spotted C-40 Crusher 7760 | -7/Waste | EMP discharged 7765 | -7/Waste | Spotted C-40 Crusher 7783 | -7/Waste | Spotted C-40 Crusher 7785 | -7/Waste | Spotted C-40 Crusher 7794 | -7/Waste | Crushed by Compactor (1 part destroyed, 1 dropped) 7794 | -7/Waste | Spotted C-40 Crusher 7800 | -7/Waste | Crushed by Compactor (1 part destroyed, 2 dropped) 7806 | -7/Waste | Crushed by Compactor (1 part destroyed, 1 dropped) 7811 | -7/Waste | Crushed by Compactor (1 part destroyed, 1 dropped) 7814 | -7/Waste | Crushed by Compactor (1 part destroyed, 1 dropped) 7817 | -7/Waste | Crushed by Compactor (1 part destroyed) 7823 | -7/Waste | Self-destructed Last Messages --------------- 07805_ Med. Armor Plating crushed. 07806_ Imp. Aluminum Leg crushed. 07806_ Enh. Autogun crushed. 07811_ Imp. Heat Sink crushed. 07811_ Gauss Cannon crushed. 07812_ MP=V86ZR4VAVEEUUVDQ5, 07814_ Hcp. Storage Unit crushed. 07814_ Imp. Deuterium Engine crushed. 07814_ Machine Analyzer crushed. 07814_ Imp. Deuterium Engine crushed. 07816_ Lgt. Treads crushed. 07817_ Mni. Grenade Launcher crushed. 07817_ System Shield crushed. 07817_ Lgt. Treads crushed. 07817_ Seismic Detector crushed. 07817_ Hacking Suite crushed. 07817_ Com. Matter Pod crushed. 07817_ Broken Arm. Treads crushed. 07822_ Gauss Cannon crushed. 07822_ Beam Rifle crushed. Map ----- +----------------------------------------------------+ | ?????????????????????????????????????????????????? | | ?????????????????????????????????????????????????? | | ?????????????????????????????????????????????????? | | ?????????????????????????????????????????????????? | | ?????????????????????????????????????????????????? | | ?????????????????????????????????????????????????? | | ?????????????????????????????????????????????????? | | ?????????????????????????????????????????????????? | | ?????????????????????????????????????????????????? | | ????????????????????##########???????????????????? | | ????????????????????# #???????????????????? | | ??????????????????# #???????????????????? | | ????????????????# #???????????????????? | | #??????????????# #???????????????????? | | #??????????????# #???????????????????? | | #??????????????# #???????????????????? | | ???????????????? ????????????????????? | | ??????######?????? ?????????????????????? | | #??????# #??????# #?????????????????????? | | #??????# #??????# #?????????????????????? | | #??????# #??????# #?????????????????????? | | #??????# #??????# #?????????????????????? | | ######## ########[ #?????????????????????? | | CC! #?????????????????????? | | CC CC #?????????????????????? | | CCCC CC @ #?????????????????????? | | CC CC #?????????????????????? | | ######## ######## #?????????????????????? | | #??????# #??????# #?????????????????????? | | #??????# #??????# #?????????????????????? | | #??????# #??????# #?????????????????????? | | #??????# #??????# #?????????????????????? | | ?????? ??????C ?????????????????????? | | ???? ?????C ????????????????????? | | ?? ??? ???????????????????? | | ? ?? ???????????????????? | | ######## ######## ###???????????????????? | | #??????# #??????# #?????????????????????? | | #??????? #??????# ??????????????????????? | | #??????? #??????# ??????????????????????? | | #??????? ????????? ??????????????????????? | | #?????????????????????????????????????????????? | | #?????????????????????????????????????????????? | | ??????????????????????????????????????????????? | | ?????????????????????????????????????????????????? | | ?????????????????????????????????????????????????? | | ?????????????????????????????????????????????????? | | ?????????????????????????????????????????????????? | | ?????????????????????????????????????????????????? | | ?????????????????????????????????????????????????? | +----------------------------------------------------+ Best States ------------- Heat Dissipation 48 Energy Generation 16 Energy Capacity 290 Matter Stores 300 Matter Capacity 300 Sight Range 16 Terrain Scan Density 10 Armor Coverage 450 Evasion (%) 55 Item Schematics ----------------- Hacking Suite | -8/Materials | Scanalyzed Machine Analyzer | -8/Materials | Scanalyzed Robot Schematics ------------------ None Fabricated ------------ Nothing Alien Tech Used ----------------- None Achievements -------------- None Challenges ------------ None Game ------ Seed WeaponMicrowarpShotgun Manual? 0 Play Time 00:31:17 Cumulative 42.4 hours Start 2024.09.18 @ 08:02:02 End 2024.09.18 @ 08:34:03 Sessions 1 Manual Loads 0 Difficulty Rogue Special Mode None Game No. 80 Rogue 80 Adventurer 0 Explorer 0 Win Type - Total 0 Types 0/0/0/0/0/0/0/0/0 Lore% 15 Gallery% 35 Achievement% 30 Wizard Run 0 Options --------- Layout 1 ASCII 0 Keyboard 1 Movement Numpad Keybinds 0 Fullscreen 1 Font 24/Smallcaps Map View 50x35 Zoom Use 0% Tactical HUD 1 Map Filters NONE Filters NONE Steam 1 RUN: f7f65f04-30a0-4e83-bf82-88976c578f88